bitfinex/quotes_BTCUSD_20220213
["timestamp","ask_amount","ask_price","bid_price","bid_amount"]
[1644723863463,0.24,42294.0,42293.0,0.33067]
[1644723863663,0.24,42294.0,42293.0,0.192939]
[1644723863869,0.24,42294.0,42293.0,0.33067]
[1644723864664,0.24,42294.0,42293.0,0.42585992]
[1644723865308,0.24116274,42294.0,42293.0,0.42585992]
[1644723865909,0.24116274,42294.0,42289.0,0.059108]
[1644723865910,1.26108986,42293.0,42287.0,0.08202795]
[1644723866113,1.26108986,42293.0,42281.0,0.01234858]
[1644723866114,0.330735,42287.0,42281.0,0.01234858]
[1644723866418,0.330735,42287.0,42274.0,0.06171885]
[1644723866419,0.330735,42282.0,42269.0,0.05]
[1644723866610,0.05,42279.0,42269.0,0.05]
[1644723866810,0.383835,42278.0,42269.0,0.05]
[1644723867009,0.330735,42277.0,42269.0,0.05]
[1644723867213,0.0531,42278.0,42269.0,0.05]
[1644723867410,0.330735,42277.0,42269.0,0.05]
[1644723867809,0.0531,42278.0,42269.0,0.05]
[1644723868011,0.3,42287.0,42276.0,0.330735]
[1644723868212,0.0531,42282.0,42276.0,0.330735]
[1644723868608,0.3,42287.0,42276.0,0.330735]
[1644723868609,0.3,42287.0,42276.0,0.430735]
[1644723868862,0.24681912,42288.0,42278.0,0.330735]
[1644723869065,0.24681912,42288.0,42279.0,0.330735]
[1644723869263,0.24681912,42288.0,42277.0,0.54951002]
[1644723869460,0.24681912,42288.0,42278.0,0.330735]
[1644723870263,0.24681912,42288.0,42278.0,0.33124961]
[1644723870462,0.035,42288.0,42278.0,0.33124961]
[1644723870862,0.335,42288.0,42278.0,0.00051461]
[1644723871066,0.05,42280.0,42278.0,0.00051461]
[1644723871263,0.2,42287.0,42270.0,0.4]
[1644723871465,0.435,42288.0,42278.0,0.00051461]
[1644723871666,0.21045756,42286.0,42278.0,0.00051461]
[1644723871863,0.24100065,42285.0,42278.0,0.00051461]
[1644723872516,0.24100065,42285.0,42278.0,0.0004763]
[1644723873109,0.28461594,42284.0,42278.0,0.0004763]
[1644723873311,0.24100065,42285.0,42278.0,0.0004763]
[1644723873511,0.24100065,42285.0,42274.0,0.43352403]
[1644723873712,0.26111,42283.0,42278.0,0.0004763]
[1644723874813,0.26111,42283.0,42276.0,0.330735]
[1644723875012,0.26111,42283.0,42278.0,0.0004763]
[1644723875212,0.00137726,42282.0,42278.0,0.0004763]
[1644723876014,0.00137726,42282.0,42274.0,0.53352403]
[1644723876257,0.00137726,42282.0,42278.0,0.00047888]
[1644723877257,0.00137726,42282.0,42274.0,0.53352403]
[1644723877457,0.00137726,42282.0,42278.0,0.00047888]
[1644723878458,0.00137726,42282.0,42274.0,0.53352403]
[1644723878658,0.00137726,42282.0,42278.0,0.00047888]
[1644723879659,0.00137726,42282.0,42275.0,0.1]
[1644723879859,0.00137726,42282.0,42278.0,0.00047871]
[1644723880311,0.00137726,42282.0,42279.0,0.330735]
[1644723880613,0.00137726,42282.0,42278.0,0.00047871]
[1644723880809,0.00137726,42282.0,42279.0,0.330735]
[1644723881422,0.00137726,42282.0,42280.0,0.26858135]
[1644723881614,0.00137726,42282.0,42281.0,0.378035]
[1644723881814,0.00137726,42282.0,42281.0,0.84357137]
[1644723882212,0.00137726,42282.0,42281.0,1.06289294]
[1644723882416,0.00137726,42282.0,42281.0,0.378035]
[1644723882615,0.00137726,42282.0,42281.0,0.330735]
[1644723882815,0.00137726,42282.0,42279.0,0.0004787]
[1644723883015,0.378035,42281.0,42279.0,0.0004787]
[1644723883216,0.378035,42281.0,42276.0,0.08]
[1644723883417,0.23345134,42280.0,42276.0,0.08]
[1644723883619,0.378035,42279.0,42276.0,0.08]
[1644723887072,0.28648905,42278.0,42276.0,0.08]
[1644723887374,0.378035,42277.0,42276.0,0.08]
[1644723887612,0.38181944,42277.0,42276.0,0.08]
[1644723888013,0.0854554,42277.0,42276.0,0.08]
[1644723888309,0.378091,42277.0,42276.0,0.08]
[1644723888709,0.0473,42277.0,42276.0,0.08]
[1644723888909,0.45840961,42280.0,42276.0,0.08]
[1644723889111,0.345142,42279.0,42276.0,0.08]
[1644723890212,0.0013708,42278.0,42276.0,0.08]
[1644723890412,0.297842,42277.0,42276.0,0.08]
[1644723894370,0.58708389,42277.0,42276.0,0.08]
[1644723895022,0.447842,42277.0,42276.0,0.08]
[1644723895219,0.447842,42277.0,42275.0,0.13]
[1644723895220,0.85,42276.0,42275.0,0.13]
[1644723895415,1.295142,42276.0,42275.0,0.13]
[1644723895614,1.35914585,42276.0,42275.0,0.13]
[1644723896113,2.61414585,42276.0,42275.0,0.13]
[1644723897114,1.35914585,42276.0,42275.0,0.13]
[1644723900158,1.36031805,42276.0,42275.0,0.13]
[1644723903107,0.51031805,42276.0,42275.0,0.13]
[1644723903308,0.2990142,42276.0,42275.0,0.13]
[1644723903507,0.0011722,42276.0,42275.0,0.13]
[1644723905411,0.00164108,42276.0,42275.0,0.13]
[1644723906264,0.00164108,42276.0,42275.0,0.460792]
[1644723906461,0.00164108,42276.0,42275.0,0.18]
[1644723906662,0.00164108,42276.0,42275.0,0.23]
[1644723906860,0.00164108,42276.0,42275.0,0.2773]
[1644723907464,0.00164108,42276.0,42275.0,0.52767169]
[1644723907661,0.00092412,42276.0,42275.0,0.52767169]
[1644723908863,0.00092412,42276.0,42275.0,0.85846369]
[1644723909061,0.00092412,42276.0,42275.0,0.52767169]
[1644723909263,0.26086728,42276.0,42275.0,0.52767169]
[1644723909462,0.26086728,42276.0,42275.0,0.85846369]
[1644723909664,0.26086728,42276.0,42275.0,0.57774603]
[1644723910130,0.26131072,42276.0,42275.0,0.57774603]
[1644723911330,0.13850599,42276.0,42275.0,0.90853803]
[1644723911529,0.13850599,42276.0,42275.0,0.57774603]
[1644723911731,0.13552599,42276.0,42275.0,1.00853803]
[1644723911933,0.00114979,42277.0,42276.0,0.93]
[1644723912134,0.24,42283.0,42282.0,0.30887791]
[1644723912333,0.24,42283.0,42282.0,0.99985862]
[1644723913541,0.24,42283.0,42282.0,0.1273]
[1644723913776,0.24,42283.0,42282.0,0.08]
[1644723913777,0.537842,42283.0,42282.0,0.08]
[1644723914771,0.24,42283.0,42282.0,0.08]
[1644723916174,0.537842,42283.0,42282.0,0.08]
[1644723917374,0.24,42283.0,42282.0,0.08]
[1644723918808,0.537842,42283.0,42282.0,0.08]
[1644723919009,0.07498538,42286.0,42282.0,0.08]
[1644723919811,0.07498538,42286.0,42282.0,0.080489]
[1644723920010,0.07498538,42286.0,42282.0,0.08408257]
[1644723920711,0.07498538,42286.0,42282.0,0.08359357]
[1644723921112,0.07498538,42286.0,42282.0,0.08410196]
[1644723921962,0.07498538,42286.0,42282.0,0.08359357]
[1644723922263,0.07498538,42286.0,42282.0,0.08410196]
[1644723922666,0.29538764,42285.0,42282.0,0.08410196]
[1644723922863,0.17498538,42286.0,42282.0,0.08410196]
[1644723923064,0.28913976,42285.0,42282.0,0.08410196]
[1644723923264,0.28913976,42285.0,42282.0,0.08359357]
[1644723923468,0.28913976,42285.0,42282.0,0.08410196]
[1644723924466,0.28913976,42285.0,42282.0,0.08359357]
[1644723925423,0.28913976,42285.0,42282.0,0.08]
[1644723925824,0.00050828,42291.0,42284.0,0.13]
[1644723926035,0.00050828,42291.0,42290.0,0.460756]
[1644723926229,0.00050828,42291.0,42290.0,0.893996]
[1644723926426,0.00050828,42291.0,42290.0,0.84460711]
[1644723926626,0.00050828,42291.0,42290.0,0.693996]
[1644723926825,0.53666933,42303.0,42290.0,0.26324]
[1644723926826,0.0731464,42292.0,42290.0,0.26324]
[1644723927025,0.0731464,42292.0,42291.0,0.61126345]
[1644723927227,0.0731464,42292.0,42291.0,0.08]
[1644723929761,0.3131464,42292.0,42291.0,0.08]
[1644723930460,0.3081464,42292.0,42291.0,0.08]
[1644723935424,0.3081464,42292.0,42291.0,0.08161802]
[1644723937168,0.3081464,42292.0,42291.0,0.00161802]
[1644723938172,0.4081464,42292.0,42291.0,0.00161802]
[1644723939570,0.4554464,42292.0,42291.0,0.00161802]
[1644723941033,0.4081464,42292.0,42291.0,0.00161802]
[1644723942736,0.3081464,42292.0,42291.0,0.00161802]
[1644723942939,0.24,42292.0,42291.0,0.13161802]
[1644723943961,0.24,42292.0,42291.0,0.71567991]
[1644723944366,0.24,42292.0,42291.0,0.38492391]
[1644723944563,0.24,42292.0,42291.0,0.13161802]
[1644723948016,0.23726275,42292.0,42291.0,0.13161802]
[1644723948818,0.13081347,42292.0,42291.0,0.72610487]
[1644723949019,0.53666933,42303.0,42293.0,0.410756]
[1644723949217,0.53643173,42303.0,42297.0,0.08]
[1644723949417,0.53643173,42303.0,42299.0,0.08]
[1644723949624,0.53666933,42303.0,42302.0,0.13]
[1644723949822,0.53643173,42303.0,42302.0,0.460756]
[1644723950022,0.53643173,42303.0,42302.0,0.13]
[1644723950418,0.53643173,42303.0,42302.0,0.08]
[1644723951019,0.77325288,42303.0,42302.0,0.08]
[1644723951763,0.53643173,42303.0,42302.0,0.08]
[1644723951963,0.53643173,42303.0,42302.0,0.13]
[1644723952563,0.53643173,42303.0,42302.0,0.08]
[1644723952963,0.77643173,42303.0,42302.0,0.08]
[1644723953563,0.77643173,42303.0,42302.0,0.0804]
[1644723953765,0.77143173,42303.0,42302.0,0.0804]
[1644723954667,0.77143173,42303.0,42302.0,0.0004]
[1644723955314,0.77143173,42303.0,42302.0,0.00201758]
[1644723956814,0.76643173,42303.0,42302.0,0.00201758]
[1644723960259,0.76643173,42303.0,42302.0,0.0004]
[1644723966365,0.86643173,42303.0,42302.0,0.0004]
[1644723968468,1.15753196,42303.0,42302.0,0.0004]
[1644723969869,1.15253196,42303.0,42302.0,0.0004]
[1644723970709,0.86143173,42303.0,42302.0,0.0004]
[1644723973613,0.76143173,42303.0,42302.0,0.0004]
[1644723975468,0.24,42303.0,42302.0,0.0004]
[1644723979112,0.00422576,42296.0,42295.0,0.08]
[1644723985411,0.00708477,42296.0,42295.0,0.08]
[1644723998374,0.00708477,42296.0,42293.0,0.08050725]
[1644723998576,0.19511828,42295.0,42293.0,0.08050725]
[1644723998978,0.19511828,42295.0,42294.0,0.08]
[1644723999679,0.24241828,42295.0,42294.0,0.08]
[1644723999879,0.29241828,42295.0,42294.0,0.08]
[1644724000316,0.85,42294.0,42292.0,0.00050726]
[1644724000620,0.0473,42293.0,42292.0,0.00050726]
[1644724000818,0.0973,42293.0,42292.0,0.00050726]
[1644724001015,0.3987179,42293.0,42292.0,0.00050726]
[1644724001318,0.97510673,42293.0,42280.0,0.00017672]
[1644724001517,0.20114615,42290.0,42279.0,0.3728]
[1644724001718,0.2161372,42282.0,42281.0,0.05]
[1644724001917,0.08553717,42282.0,42281.0,0.05]
[1644724005471,0.08805469,42282.0,42281.0,0.05]
[1644724007621,0.32805469,42282.0,42281.0,0.05]
[1644724009820,0.24251752,42282.0,42281.0,0.05]
[1644724010223,0.24251752,42282.0,42281.0,0.31259036]
[1644724010424,0.24251752,42282.0,42281.0,0.41259036]
[1644724011123,0.21560792,42282.0,42281.0,0.78978717]
[1644724011363,0.21560792,42282.0,42281.0,0.43926648]
[1644724011571,0.21560792,42282.0,42281.0,0.78978684]
[1644724011763,0.21560792,42282.0,42281.0,1.12054284]
[1644724011964,0.15510792,42282.0,42281.0,1.26207187]
[1644724012365,0.15510792,42282.0,42281.0,1.38029487]
[1644724012765,0.15510792,42282.0,42281.0,1.42759487]
[1644724015215,0.15510792,42282.0,42281.0,1.42259487]
[1644724015615,0.15510792,42282.0,42281.0,1.42433136]
[1644724020467,0.15510792,42282.0,42281.0,1.42259487]
[1644724021165,0.13208196,42282.0,42281.0,1.04539839]
[1644724026267,0.13208196,42282.0,42281.0,1.4209643]
[1644724027066,0.13208196,42282.0,42281.0,1.07044394]
[1644724030125,0.13208196,42282.0,42281.0,1.42109515]
[1644724030320,0.13208196,42282.0,42281.0,1.41415739]
[1644724030621,0.13208196,42282.0,42281.0,1.41416427]
[1644724030918,0.13208196,42282.0,42281.0,1.41417851]
[1644724031118,0.11887377,42282.0,42281.0,1.41417851]
[1644724032520,0.11887377,42282.0,42281.0,0.78280803]
[1644724032722,0.11887377,42282.0,42281.0,0.56458503]
[1644724032918,0.11887377,42282.0,42281.0,0.473056]
[1644724033118,0.11887377,42282.0,42281.0,0.425756]
[1644724033968,0.11887377,42282.0,42281.0,0.375756]
[1644724034168,0.11887377,42282.0,42281.0,0.425756]
[1644724035770,0.11887377,42282.0,42281.0,0.42749249]
[1644724042067,0.11887377,42282.0,42281.0,0.72830065]
[1644724043568,0.11887377,42282.0,42281.0,0.42749249]
[1644724047126,0.11887377,42282.0,42281.0,0.37749249]
[1644724049269,0.11887377,42282.0,42281.0,0.75553087]
[1644724050073,0.11887377,42282.0,42281.0,0.80553087]
[1644724050273,0.11887377,42282.0,42281.0,1.25732364]
[1644724050473,0.11887377,42282.0,42281.0,0.81950675]
[1644724050676,0.1060067,42282.0,42281.0,0.81950675]
[1644724050872,0.1060067,42282.0,42281.0,0.67797772]
[1644724052375,0.1060067,42282.0,42281.0,0.6711173]
[1644724052627,0.1060067,42282.0,42281.0,0.9038263]
[1644724053027,0.1060067,42282.0,42281.0,1.04535533]
[1644724054524,0.1060067,42282.0,42281.0,0.81264633]
[1644724055127,0.1060067,42282.0,42281.0,0.6711173]
[1644724055626,0.1060067,42282.0,42281.0,0.6728748]
[1644724056277,0.1060067,42282.0,42281.0,0.7701748]
[1644724056477,0.1060067,42282.0,42281.0,1.04016586]
[1644724056679,0.1060067,42282.0,42281.0,0.91170383]
[1644724056878,0.0465067,42282.0,42281.0,0.86170383]
[1644724057076,0.0465067,42282.0,42281.0,0.7201748]
[1644724057478,0.0465067,42282.0,42281.0,0.86170383]
[1644724057679,0.0465067,42282.0,42281.0,0.7201748]
[1644724057877,0.0465067,42282.0,42281.0,0.86170383]
[1644724058078,0.0465067,42282.0,42281.0,0.7201748]
[1644724058277,0.0465067,42282.0,42281.0,1.13120531]
[1644724058678,0.0465067,42282.0,42281.0,1.18120531]
[1644724059879,0.0465067,42282.0,42281.0,1.13120531]
[1644724060627,0.03523043,42282.0,42281.0,1.13120531]
[1644724060823,0.03523043,42282.0,42281.0,1.18120531]
[1644724062328,0.03523043,42282.0,42281.0,1.13120531]
[1644724064072,0.03523043,42282.0,42281.0,1.18120531]
[1644724064473,0.03523043,42282.0,42281.0,1.23120531]
[1644724064674,0.03523043,42282.0,42281.0,1.18120531]
[1644724065876,0.03523043,42282.0,42281.0,1.20278977]
[1644724070521,0.02709668,42282.0,42281.0,1.20278977]
[1644724076724,0.02709668,42282.0,42281.0,1.51677355]
[1644724080377,0.02709668,42282.0,42281.0,1.91784902]
[1644724080774,0.02248921,42282.0,42281.0,1.91784902]
[1644724080975,0.02248921,42282.0,42281.0,1.60386524]
[1644724081978,0.02248921,42282.0,42281.0,2.10386524]
[1644724083520,0.02248921,42282.0,42281.0,2.60386524]
[1644724084525,0.02248921,42282.0,42281.0,2.69870801]
[1644724086573,0.01607293,42282.0,42281.0,2.69870801]
[1644724087080,0.01607293,42282.0,42281.0,3.0128011]
[1644724087476,0.01607293,42282.0,42281.0,2.69870801]
[1644724088280,0.01607293,42282.0,42281.0,2.29763254]
[1644724090724,0.01256623,42282.0,42281.0,2.29763254]
[1644724092628,0.01256623,42282.0,42281.0,2.69857573]
[1644724092830,0.01256623,42282.0,42281.0,2.29763254]
[1644724093229,0.01256623,42282.0,42281.0,2.61172563]
[1644724097085,0.00903979,42282.0,42281.0,2.61172563]
[1644724098024,0.00874174,42282.0,42281.0,2.61172563]
[1644724098426,0.00724178,42282.0,42281.0,2.61172563]
[1644724098627,0.00342527,42282.0,42281.0,2.61172563]
[1644724098825,0.00116417,42282.0,42281.0,2.61172563]
[1644724100230,0.11726417,42295.0,42289.0,0.25201245]
[1644724100426,0.27908858,42297.0,42294.0,0.300731]
[1644724100627,0.78349514,42298.0,42294.0,0.300731]
[1644724100628,0.27745365,42298.0,42294.0,0.300731]
[1644724100827,0.00023663,42300.0,42294.0,0.300731]
[1644724101028,0.005,42303.0,42294.0,0.300731]
[1644724101029,0.00023663,42302.0,42294.0,0.300731]
[1644724101275,0.00023663,42300.0,42295.0,0.00047]
[1644724101473,0.00046993,42301.0,42295.0,0.00047]
[1644724101675,0.00023663,42300.0,42295.0,0.00047]
[1644724101877,0.54065526,42301.0,42295.0,0.00047]
[1644724102075,0.00023663,42300.0,42295.0,0.00047]
[1644724102275,0.54018533,42301.0,42294.0,0.300731]
[1644724102476,0.00023663,42300.0,42295.0,0.00047]
[1644724102779,0.54065527,42301.0,42295.0,0.00047]
[1644724102979,0.00023663,42300.0,42295.0,0.00047]
[1644724103179,0.54065527,42301.0,42295.0,0.00047]
[1644724103382,0.00023663,42300.0,42295.0,0.00047]
[1644724103579,0.54018533,42301.0,42292.0,0.300731]
[1644724103782,0.00023663,42300.0,42296.0,0.00047]
[1644724103979,0.53565527,42301.0,42296.0,0.00047]
[1644724104181,0.00023663,42300.0,42296.0,0.00047]
[1644724104479,0.53565527,42301.0,42296.0,0.00047]
[1644724104680,0.00023663,42300.0,42294.0,0.300731]
[1644724105029,0.53565527,42301.0,42296.0,0.00221938]
[1644724105224,0.00023663,42300.0,42296.0,0.00221938]
[1644724105430,0.53565527,42301.0,42296.0,0.00221938]
[1644724105627,0.00023663,42300.0,42296.0,0.00221938]
[1644724105828,0.53565527,42301.0,42296.0,0.00221938]
[1644724106028,0.53518533,42301.0,42296.0,0.00174939]
[1644724106230,0.53565527,42301.0,42296.0,0.00221938]
[1644724106429,0.28973696,42301.0,42296.0,0.00221938]
[1644724107231,0.28926702,42301.0,42296.0,0.00174939]
[1644724107432,0.28973696,42301.0,42296.0,0.00221939]
[1644724108232,0.28450523,42301.0,42296.0,0.00174939]
[1644724108432,0.28403529,42301.0,42296.0,0.00174939]
[1644724108635,0.28450523,42301.0,42296.0,0.00221939]
[1644724109078,0.52450523,42301.0,42296.0,0.00221939]
[1644724109477,0.52403529,42301.0,42296.0,0.00174939]
[1644724109676,0.52450523,42301.0,42296.0,0.00221939]
[1644724110681,0.24023663,42301.0,42296.0,0.00174939]
[1644724110878,0.24023663,42301.0,42296.0,0.00221939]
[1644724111078,0.24070657,42301.0,42296.0,0.00221939]
[1644724111877,0.24070657,42301.0,42296.0,0.00174939]
[1644724111878,0.24023663,42301.0,42296.0,0.00174939]
[1644724112079,0.24070657,42301.0,42296.0,0.00221939]
[1644724113124,0.24023663,42301.0,42296.0,0.00174939]
[1644724113325,0.24070657,42301.0,42296.0,0.00221939]
[1644724114425,0.24023663,42301.0,42296.0,0.00174939]
[1644724114723,0.24070657,42301.0,42296.0,0.00221939]
[1644724115525,0.52237948,42301.0,42296.0,0.00174939]
[1644724115724,0.5228494,42301.0,42296.0,0.00294903]
[1644724116123,0.51930244,42301.0,42296.0,0.00294903]
[1644724116777,0.51883252,42301.0,42296.0,0.00247905]
[1644724116977,0.51930244,42301.0,42296.0,0.00294903]
[1644724117179,0.20291635,42297.0,42296.0,0.00294903]
[1644724117881,0.20291635,42297.0,42296.0,0.00247905]
[1644724118080,0.00023663,42300.0,42296.0,0.00247905]
[1644724118284,0.24070654,42301.0,42296.0,0.00247905]
[1644724118486,0.00023663,42300.0,42296.0,0.00247905]
[1644724118683,0.24070654,42301.0,42296.0,0.00247905]
[1644724118884,0.51920754,42301.0,42296.0,0.00247905]
[1644724119084,0.51373763,42301.0,42296.0,0.00247905]
[1644724119284,0.22383625,42299.0,42296.0,0.00294905]
[1644724120330,0.22383625,42299.0,42296.0,0.00247905]
[1644724121135,0.28074057,42298.0,42296.0,0.00247905]
[1644724121333,0.28074057,42298.0,42286.0,0.14160603]
[1644724121334,0.0044881,42295.0,42288.0,0.35090478]
[1644724121531,0.005,42292.0,42288.0,0.35090478]
[1644724121731,0.005,42292.0,42281.0,0.5]
[1644724121732,0.08094448,42289.0,42284.0,0.35090478]
[1644724121931,0.08094448,42289.0,42283.0,0.35090478]
[1644724122133,0.34984059,42289.0,42283.0,0.35090478]
[1644724122932,0.34984059,42289.0,42284.0,0.00025989]
[1644724123531,0.28349654,42288.0,42284.0,0.00025989]
[1644724123982,0.28349654,42288.0,42281.0,0.35090478]
[1644724124182,0.28349654,42288.0,42284.0,0.00047042]
[1644724125186,0.39714059,42289.0,42280.0,0.35090478]
[1644724125484,0.67955228,42289.0,42284.0,0.00047042]
[1644724125686,0.00127457,42288.0,42284.0,0.00047042]
[1644724126086,0.00032795,42288.0,42284.0,0.00047042]
[1644724126291,2.948e-05,42288.0,42280.0,0.35090478]
[1644724126486,2.948e-05,42288.0,42284.0,0.00046952]
[1644724127287,0.6791038,42289.0,42284.0,0.00046952]
[1644724127529,0.6791038,42289.0,42279.0,0.35108757]
[1644724127725,0.6791038,42289.0,42284.0,0.00046952]
[1644724128424,0.39775069,42289.0,42284.0,0.00046952]
[1644724128724,0.68449467,42289.0,42279.0,0.00018279]
[1644724128929,0.68449467,42289.0,42284.0,0.00046952]
[1644724129125,0.39775069,42289.0,42284.0,0.00046952]
[1644724129528,0.08155458,42289.0,42284.0,0.00046952]
[1644724129926,0.08155458,42289.0,42279.0,0.00018279]
[1644724130126,0.0006101,42289.0,42284.0,0.00047015]
[1644724130627,0.00137296,42289.0,42284.0,0.00047015]
[1644724131026,0.28055987,42289.0,42284.0,0.00047015]
[1644724132278,0.28055987,42289.0,42279.0,0.00704524]
[1644724132479,0.28055987,42289.0,42284.0,0.00047015]
[1644724133279,0.52055987,42289.0,42284.0,0.00047015]
[1644724133478,0.52055987,42289.0,42280.0,0.045]
[1644724133692,0.24137296,42289.0,42284.0,0.21281596]
[1644724133884,0.24137296,42289.0,42285.0,0.330756]
[1644724134088,0.24137296,42289.0,42288.0,0.045]
[1644724134282,0.24137296,42289.0,42288.0,0.64312456]
[1644724134482,0.24137296,42289.0,42288.0,0.59312456]
[1644724134682,0.24137296,42289.0,42288.0,0.63812456]
[1644724135427,0.24137296,42289.0,42288.0,0.68812456]
[1644724135829,0.24,42289.0,42288.0,0.73812456]
[1644724138328,0.24,42289.0,42288.0,0.83812456]
[1644724138527,0.24,42289.0,42288.0,1.26137914]
[1644724138779,0.24,42289.0,42288.0,0.94452656]
[1644724138977,0.24,42289.0,42288.0,1.32048056]
[1644724139177,0.23605225,42289.0,42288.0,1.32048056]
[1644724139381,0.21244703,42289.0,42288.0,1.32048056]
[1644724140279,0.08628229,42289.0,42288.0,1.3227403]
[1644724140481,0.08628229,42289.0,42288.0,1.44472073]
[1644724140780,0.08628229,42289.0,42288.0,1.09381595]
[1644724141986,0.08628229,42289.0,42288.0,1.03471395]
[1644724144028,0.08628229,42289.0,42288.0,1.00966473]
[1644724144634,0.08628229,42289.0,42288.0,1.06876673]
[1644724145228,0.08628229,42289.0,42288.0,0.9467863]
[1644724145428,0.08628229,42289.0,42288.0,0.94735123]
[1644724146482,0.08580898,42289.0,42288.0,0.94735123]
[1644724147480,0.0827416,42289.0,42288.0,0.94735123]
[1644724147681,0.07897243,42289.0,42288.0,0.94735123]
[1644724147882,0.07592027,42289.0,42288.0,0.94735123]
[1644724148181,0.07062915,42289.0,42288.0,0.94735123]
[1644724148382,0.06756004,42289.0,42288.0,0.94735123]
[1644724148581,0.06708673,42289.0,42288.0,1.06915224]
[1644724149384,0.06547872,42289.0,42288.0,1.06915224]
[1644724149584,0.06235471,42289.0,42288.0,1.06915224]
[1644724149787,0.05926514,42289.0,42288.0,1.06915224]
[1644724150034,0.05476957,42289.0,42288.0,1.06915224]
[1644724150231,0.0532965,42289.0,42288.0,1.06915224]
[1644724150931,0.0532965,42289.0,42288.0,0.94735123]
[1644724152131,0.0532965,42289.0,42288.0,0.62588067]
[1644724152832,0.0532965,42289.0,42288.0,0.53358067]
[1644724153638,0.0532965,42289.0,42288.0,0.43358067]
[1644724154493,0.0532965,42289.0,42288.0,0.33358067]
[1644724154997,0.0044881,42295.0,42289.0,0.00130013]
[1644724155194,0.0044881,42295.0,42290.0,0.330756]
[1644724156495,0.0044881,42295.0,42290.0,0.33126379]
[1644724157535,0.00472473,42295.0,42292.0,0.330756]
[1644724157734,0.0044881,42295.0,42292.0,0.330756]
[1644724158632,0.00472473,42295.0,42292.0,0.330756]
[1644724158833,0.0044881,42295.0,42292.0,0.330756]
[1644724159935,0.0044881,42295.0,42291.0,0.48903439]
[1644724160139,0.0044881,42295.0,42292.0,0.58783198]
[1644724160337,0.0044881,42295.0,42291.0,0.59236357]
[1644724160534,0.0044881,42295.0,42293.0,0.330756]
[1644724161137,0.00472473,42295.0,42293.0,0.330756]
[1644724161383,0.0044881,42295.0,42293.0,0.330756]
[1644724161584,0.0044881,42295.0,42292.0,0.00050831]
[1644724161784,0.00472473,42295.0,42293.0,0.330756]
[1644724161984,0.0044881,42295.0,42292.0,0.00050831]
[1644724162185,0.0044881,42295.0,42293.0,0.330756]
[1644724163686,0.00472473,42295.0,42293.0,0.330756]
[1644724163889,0.0044881,42295.0,42293.0,0.330756]
[1644724164287,0.00472473,42295.0,42293.0,0.330756]
[1644724164490,0.0044881,42295.0,42293.0,0.330756]
[1644724165131,0.0044881,42295.0,42294.0,0.30282063]
[1644724165334,0.0044881,42295.0,42294.0,0.73357663]
[1644724165530,0.0044881,42295.0,42294.0,0.43357663]
[1644724165727,0.2444881,42295.0,42294.0,0.43357663]
[1644724166330,0.2444881,42295.0,42294.0,0.55176363]
[1644724166727,0.2344881,42295.0,42294.0,0.55176363]
[1644724167128,0.2344881,42295.0,42294.0,0.59906363]
[1644724169980,0.2344881,42295.0,42294.0,0.596243]
[1644724171580,0.2344881,42295.0,42294.0,0.496243]
[1644724171778,0.2344881,42295.0,42294.0,0.596243]
[1644724174338,0.2344881,42295.0,42294.0,0.85074987]
[1644724174636,0.2344881,42295.0,42294.0,0.75404414]
[1644724177783,0.2344881,42295.0,42294.0,0.77913508]
[1644724178783,0.2344881,42295.0,42294.0,1.03289218]
[1644724181537,0.2344881,42295.0,42294.0,0.77913508]
[1644724181942,0.2344881,42295.0,42294.0,0.62133394]
[1644724182136,0.2344881,42295.0,42294.0,0.50314694]
[1644724182941,0.2344881,42295.0,42294.0,0.75778435]
[1644724183139,0.2344881,42295.0,42294.0,0.91558549]
[1644724185780,0.2344881,42295.0,42294.0,0.96058549]
[1644724187280,0.2344881,42295.0,42294.0,0.70594808]
[1644724187535,0.2344881,42295.0,42294.0,0.54814694]
[1644724188136,0.2344881,42295.0,42294.0,0.44814694]
[1644724188335,0.2344881,42295.0,42294.0,0.54814694]
[1644724188740,0.2344881,42295.0,42294.0,0.35584694]
[1644724189537,0.23441727,42295.0,42294.0,0.35584694]
[1644724192883,0.23441727,42295.0,42294.0,0.45584694]
[1644724200590,0.23441727,42295.0,42294.0,0.77271786]
[1644724200792,0.21097555,42295.0,42294.0,0.82001786]
[1644724200989,0.21097555,42295.0,42294.0,0.977819]
[1644724201192,0.21097555,42295.0,42294.0,0.82001786]
[1644724201389,0.21097555,42295.0,42294.0,0.977819]
[1644724201989,0.18578219,42295.0,42294.0,0.977819]
[1644724202189,0.18578219,42295.0,42294.0,1.3427962]
[1644724202640,0.18578219,42295.0,42294.0,0.72004108]
[1644724202840,0.18578219,42295.0,42294.0,0.51364808]
[1644724203037,0.18578219,42295.0,42294.0,1.35584694]
[1644724203436,0.18578219,42295.0,42294.0,1.51364808]
[1644724203635,0.18578219,42295.0,42294.0,1.18289208]
[1644724203835,0.18578219,42295.0,42294.0,1.03422839]
[1644724204035,0.18578219,42295.0,42294.0,0.15780114]
[1644724204240,0.18578219,42295.0,42294.0,0.37642914]
[1644724204537,0.18578219,42295.0,42294.0,0.330756]
[1644724204737,0.18578219,42295.0,42294.0,0.7071853]
[1644724205135,0.18578219,42295.0,42294.0,0.35584899]
[1644724207098,0.18578219,42295.0,42294.0,0.70713782]
[1644724207594,0.18578219,42295.0,42294.0,0.70713446]
[1644724211234,0.18578219,42295.0,42294.0,0.75213446]
[1644724212141,0.18578219,42295.0,42294.0,0.40084899]
[1644724212936,0.18578219,42295.0,42294.0,0.35584899]
[1644724213982,0.18578219,42295.0,42293.0,0.35511981]
[1644724214181,0.18578219,42295.0,42293.0,0.00379565]
[1644724215483,0.18578219,42295.0,42292.0,0.00046991]
[1644724216485,0.18578219,42295.0,42291.0,0.35132416]
[1644724216687,0.18578219,42295.0,42291.0,0.00046983]
[1644724217289,0.1892197,42293.0,42291.0,0.00046983]
[1644724217540,0.18578219,42295.0,42290.0,0.35420575]
[1644724217740,0.18578219,42295.0,42290.0,0.35446471]
[1644724218442,0.18578219,42295.0,42290.0,0.00314055]
[1644724218639,0.25191976,42294.0,42290.0,0.00314055]
[1644724218841,0.25191976,42294.0,42290.0,0.00288159]
[1644724219039,0.25191976,42294.0,42290.0,0.00314055]
[1644724219639,0.25191976,42294.0,42291.0,0.330756]
[1644724219844,0.25191976,42294.0,42290.0,0.00314055]
[1644724220040,0.25191976,42294.0,42289.0,0.35262429]
[1644724220240,0.25191976,42294.0,42290.0,0.00028004]
[1644724221284,0.25191976,42294.0,42289.0,0.35262429]
[1644724221484,0.25191976,42294.0,42290.0,0.00049139]
[1644724222485,0.25182261,42294.0,42289.0,0.35262429]